[Event "Danish Skakligaen 2024-25"]
[Site "Denmark"]
[Date "2024.11.02"]
[Round "1.1"]
[White "Andersen, Mads"]
[Black "Rozentalis, Eduardas"]
[Result "1/2-1/2"]
[ECO "C70"]
[WhiteElo "2595"]
[BlackElo "2489"]
[Annotator "TA"]
[PlyCount "139"]
[EventDate "2024.11.02"]
[EventType "team-tourn"]
[EventCountry "DEN"]
[SourceTitle "playchess.com"]
[Source "ChessBase"]
[SourceQuality "1"]
[TimeControl "40/5400+30:1800+30"]

{[%evp 59,139,48,41,20,27,29,32,0,35,25,25,2,13,0,6,4,9,8,6,0,34,28,74,74,78,84,86,89,83,75,79,77,75,82,81,72,80,51,48,39,39,39,60,0,20,20,20,0,39,48,45,20,20,20,20,0,20,0,20,0,47,39,58,59,100,20,27,14,14,14,14,8,8,8,8,8,15,15,15,15,15,15]} 1. e4 {[%emt 0:00:05]} e5 {[%emt 0:00:19]} 2. Nf3 {[%emt 0:00:10]} Nc6 {[%emt 0:00:21]} 3. Bb5 {[%emt 0:00:17]} a6 {[%emt 0:00:21]} 4. Ba4 {[%emt 0:00:12]} Nge7 {[%emt 0:00:14]} 5. c3 {[%emt 0:04:37]} Ng6 {[%emt 0:02:38]} 6. d4 {[%emt 0:04:06] C70: Ruy Lopez: 3...a6 4 Ba4, Norwegian and Delayed Schliemann.} exd4 {[%emt 0:00:47]} 7. Nxd4 {[%emt 0:00:15]} Be7 {[%emt 0:20:33]} 8. O-O {[%emt 0:06:54]} O-O {[%emt 0:00:33]} 9. f4 {[%emt 0:16:32]} b5 {[%emt 0:01:47]} 10. Nxc6 $146 {[%emt 0:12:50]} ({Predecessor:} 10. Bc2 Bb7 11. Be3 d6 12. Nd2 Re8 13. Qh5 Bf6 14. Rad1 Qc8 15. N4f3 Nd8 16. f5 {1-0 Doknjas,N (2254)-Khodjimatov,S (2131) Calgary 14th 2023 (9)}) 10... dxc6 {[%emt 0:00:19]} 11. Bc2 {[%emt 0:00:39]} Qxd1 {[%emt 0:06:47]} 12. Bxd1 {[%emt 0:05:22]} c5 {[%emt 0:01:09]} 13. Be3 {[%emt 0:06:53]} Bb7 {[%emt 0:00:52]} 14. Nd2 {[%emt 0:00:28]} f6 {[%emt 0:05:22]} 15. a4 {[%emt 0:03:35]} Bd6 {[%emt 0:03:41]} 16. g3 {[%emt 0:05:16]} Rfe8 {[%emt 0:05:17]} 17. Bf3 {[%emt 0:03:10]} Nf8 {[%emt 0:00:55]} 18. Kf2 {[%emt 0:03:58]} Nd7 {[%emt 0:08:21]} 19. axb5 {[%emt 0:05:17]} axb5 {[%emt 0:00:27]} 20. e5 {[%emt 0:00:28]} Bxf3 {[%emt 0:05:07]} 21. exd6 {[%emt 0:00:12]} Bb7 {[%emt 0:08:47]} 22. dxc7 {[%emt 0:01:24]} Rac8 {[%emt 0:00:12]} 23. Ra7 {[%emt 0:04:36]} Rxc7 {[%emt 0:01:02]} 24. Nb3 {[%emt 0:00:25]} Rec8 {[%emt 0:06:30]} 25. Rd1 {[%emt 0:03:09]} Ra8 {[%emt 0:05:11]} 26. Rda1 {[%emt 0:04:14]} Rac8 {[%emt 0:00:15]} 27. Rd1 {[%emt 0:00:15]} Ra8 {[%emt 0:00:05]} 28. Rda1 {[%emt 0:04:41]} Rac8 {[%emt 0:00:13]} 29. R1a5 {[%emt 0:02:07]} Bd5 {[%emt 0:02:39]} 30. Rxc7 {[%emt 0:01:00]} Rxc7 {[%emt 0:00:15]} 31. Nc1 {[%emt 0:01:17]} (31. Rxb5 Bc4 32. Rxc5 Nxc5 33. Nxc5 Ra7 $11) 31... Bc6 {[%emt 0:03:59]} 32. Nd3 {[%emt 0:00:31]} Bd5 {[%emt 0:00:18]} 33. Nc1 {[%emt 0:00:36]} (33. Rxb5 Bc4 34. Rxc5 Nxc5 35. Nxc5 Ra7 $15) 33... Bc6 {[%emt 0:00:11]} 34. Ra6 {[%emt 0:01:01]} Kf7 {[%emt 0:03:58]} 35. Nd3 {[%emt 0:00:17]} Bd5 {[%emt 0:02:02]} 36. Ra5 {[%emt 0:00:48]} Bc4 {[%emt 0:01:43]} 37. Nc1 {[%emt 0:00:15]} Rb7 {[%emt 0:00:12]} 38. g4 {[%emt 0:00:45]} g6 {[%emt 0:01:00]} 39. h3 {[%emt 0:00:22]} Be6 {[%emt 0:00:42]} 40. Nd3 {[%emt 0:00:30]} Bc4 {[%emt 0:00:52]} (40... Rc7 $11) 41. Nxc5 $16 {[%emt 0:30:49]} Nxc5 {[%emt 0:30:19]} 42. Bxc5 {[%emt 0:00:03]} Rd7 {[%emt 0:00:24]} 43. Bd4 {[%emt 0:00:00]} Re7 {[%emt 0:00:00]} 44. b3 {[%emt 0:00:00]} Bxb3 {[%emt 0:00:00]} 45. Rxb5 {[%emt 0:00:00]} Bc4 {[%emt 0:00:00]} 46. Rc5 {[%emt 0:00:00]} Bd3 {[%emt 0:00:00]} 47. Kg3 {[%emt 0:00:00]} Re1 {[%emt 0:00:00]} 48. Kh4 {[%emt 0:00:00]} h6 {[%emt 0:00:00]} 49. Rc7+ {[%emt 0:00:00]} Re7 {[%emt 0:00:00]} 50. Rc8 {[%emt 0:00:00]} Re2 {[%emt 0:00:00]} 51. Rc7+ {[%emt 0:00:00]} Re7 {[%emt 0:00:00]} 52. Rc6 {[%emt 0:00:00]} Re6 {[%emt 0:00:00]} 53. Rc5 {[%emt 0:00:19]} Re1 $1 {[%emt 0:00:00]} 54. Kg3 {[%emt 0:01:17]} f5 {[%emt 0:00:00]} 55. Rc7+ {[%emt 0:02:39]} Re7 {[%emt 0:00:00]} 56. Rc8 {[%emt 0:00:16]} Re8 {[%emt 0:00:00]} 57. Rc7+ {[%emt 0:00:12]} Re7 {[%emt 0:00:00]} 58. Rc8 {[%emt 0:00:13]} Re8 {[%emt 0:00:00]} 59. Rc5 {[%emt 0:00:35]} Re2 {[%emt 0:00:00]} (59... Re1 $11) 60. Kh4 {[%emt 0:01:46]} fxg4 {[%emt 0:09:51]} 61. hxg4 {[%emt 0:00:15]} h5 {[%emt 0:00:02] [#]} 62. Rc7+ {[%emt 0:00:43]} ({Much less strong is} 62. gxh5 Rh2+ 63. Kg4 Bf5+ 64. Kg3 Rxh5 $11) (62. f5 $1 $16 {[%cal Rf5f6] f6 is the strong threat.} Re4 63. fxg6+ Kxg6 64. Rg5+ (64. Rxh5 Rxg4+ 65. Kxg4 Be2+ 66. Kf4 Bxh5 $11) 64... Kf7 65. Rxh5 (65. Kxh5 Be2 $16)) 62... Ke6 $11 {[%emt 0:00:37]} 63. gxh5 {[%emt 0:01:59]} Rh2+ {[%emt 0:00:06]} 64. Kg3 {[%emt 0:00:09]} Rxh5 {[%emt 0:00:13]} 65. c4 {[%emt 0:00:27]} Kd6 {[%emt 0:00:20]} 66. Rg7 {[%emt 0:00:54]} Bxc4 {[%emt 0:00:17]} 67. Rxg6+ {[%emt 0:00:13]} Ke7 {[%emt 0:00:36]} 68. Rg7+ {[%emt 0:00:19]} Ke6 {[%emt 0:00:39]} 69. Rc7 {[%emt 0:00:22]} Bd3 {[%emt 0:00:22]} 70. Rc6+ {[%emt 0:00:48]} 1/2-1/2

[Event "Danish Skakligaen 2024-25"]
[Site "Denmark"]
[Date "2024.11.02"]
[Round "1.1"]
[White "Thybo, Jesper Sondergaard"]
[Black "Sloth, Jorn"]
[Result "1-0"]
[ECO "A05"]
[WhiteElo "2549"]
[BlackElo "2295"]
[Annotator "TA"]
[PlyCount "71"]
[EventDate "2024.11.02"]
[EventType "team-tourn"]
[EventCountry "DEN"]
[SourceTitle "playchess.com"]
[Source "ChessBase"]
[SourceQuality "1"]
[TimeControl "40/5400+30:1800+30"]

{[%evp 12,71,27,29,29,26,21,17,20,17,25,21,18,22,22,15,18,16,25,14,14,8,36,7,14,14,8,0,10,0,30,36,71,71,71,71,93,68,106,85,92,79,104,71,71,71,126,76,127,83,112,111,153,150,152,141,314,333,789,784,702,771]} 1. Nf3 {[%emt 0:00:24]} Nf6 {[%emt 0:01:26]} 2. g3 {[%emt 0:00:21]} b6 {[%emt 0:03:41]} 3. d4 {[%emt 0:00:32]} Bb7 {[%emt 0:00:20]} 4. c4 {[%emt 0:00:16]} Bxf3 {[%emt 0:03:07]} 5. exf3 {[%emt 0:00:10]} e6 {[%emt 0:00:13]} 6. Bg2 {[%emt 0:01:42]} Bb4+ {[%emt 0:01:07]} 7. Nc3 {[%emt 0:02:54]} Nc6 {[%emt 0:04:39]} 8. O-O {[%emt 0:01:18]} Bxc3 {[%emt 0:04:05]} 9. bxc3 {[%emt 0:00:26]} Na5 {[%emt 0:00:14] The position is equal.} 10. Qe2 {[%emt 0:03:24]} O-O {[%emt 0:02:45]} 11. Ba3 {[%emt 0:10:02]} Re8 {[%emt 0:01:42]} 12. Bb4 {[%emt 0:01:44]} Nc6 {[%emt 0:03:47]} 13. f4 {[%emt 0:01:15]} d5 {[%emt 0:10:09]} 14. a4 {[%emt 0:01:42][%cal Ba2a4,Ba4a5][%mdl 32]} Qd7 {[%emt 0:06:48]} 15. a5 {[%emt 0:02:53]} Rab8 {[%emt 0:05:01]} 16. Rfd1 {[%emt 0:07:12][%cal Bf1d1,Bd1e1,Be1e5][%mdl 32]} b5 {[%emt 0:08:08]} 17. cxd5 {[%emt 0:05:17]} exd5 {[%emt 0:04:10]} 18. Qd3 {[%emt 0:00:29]} a6 {[%emt 0:20:46]} 19. Re1 {[%emt 0:05:17]} Rbd8 {[%emt 0:07:59]} 20. Rac1 {[%emt 0:07:36][%cal Ba1c1,Bc1c2,Bc2e2][%mdl 32]} Ne7 {[%emt 0:02:26][%cal Bc6e7,Be7c8,Bc8d6,Bd6c4][%mdl 32]} 21. Qf1 {[%emt 0:01:44]} Nc8 {[%emt 0:01:27]} 22. Bh3 {[%emt 0:03:58] This pair of bishops is nice.} Qc6 {[%emt 0:00:16]} 23. Re5 {[%emt 0:02:07]} Ne4 {[%emt 0:02:30]} 24. Rc2 {[%emt 0:11:23]} Ncd6 {[%emt 0:03:08]} 25. f3 {[%emt 0:01:26]} Nf6 {[%emt 0:00:22]} 26. Rce2 $36 {[%emt 0:00:28][%mdl 2048] Keeping Black busy.} Nc4 {[%emt 0:00:52]} 27. Re7 {[%emt 0:02:02][%cal Oh3d7] [#] Threatens to win with Bd7!} Nd6 {[%emt 0:01:34]} 28. Qe1 {[%emt 0:01:06] And now Bxd6 would win. White has more active pieces.} Rf8 {[%emt 0:00:21]} (28... Rxe7 $142 29. Rxe7 h5) 29. Kg2 {[%emt 0:01:43]} (29. g4 $142) 29... Kh8 {[%emt 0:00:07]} ({Better is} 29... h5) 30. g4 {[%emt 0:02:17] Black is weak on the dark squares} Ng8 {[%emt 0:00:23]} 31. R7e5 {[%emt 0:00:50]} f6 {[%emt 0:01:34]} 32. Re6 {[%emt 0:00:57]} Qd7 {[%emt 0:00:23]} 33. f5 {[%emt 0:05:46]} g5 $2 {[%emt 0:00:56]} (33... Ra8 $16 34. Kg1 Rfd8) 34. fxg6 $18 {[%emt 0:01:16]} hxg6 $2 {[%emt 0:00:03] [#]} (34... Qg7 35. gxh7 Qxh7) 35. Re7 $1 {[%emt 0:01:28][%mdl 512]} Nxe7 {[%emt 0:00:49]} 36. Rxe7 {[%emt 0:00:06] Weighted Error Value: White=0.11 (very precise) /Black=0.22 (precise) .  Loses game:     	---       	Black=1      Mistake:       	White=1     	Black=3      Inaccurate:     	White=3     	Black=5      OK:         	White=12    	Black=8      Best:        	---       	Black=2} 1-0

[Event "Danish Skakligaen 2024-25"]
[Site "Denmark"]
[Date "2024.11.02"]
[Round "1.1"]
[White "Mikkelsen, Nikolaj"]
[Black "Hillarp Persson, Tiger"]
[Result "0-1"]
[ECO "B51"]
[WhiteElo "2477"]
[BlackElo "2455"]
[Annotator "TA"]
[PlyCount "128"]
[EventDate "2024.11.02"]
[EventType "team-tourn"]
[EventCountry "DEN"]
[SourceTitle "playchess.com"]
[Source "ChessBase"]
[SourceQuality "1"]
[TimeControl "40/5400+30:1800+30"]

{[%evp 15,127,12,12,3,6,13,14,0,21,22,20,17,37,27,34,0,7,0,37,47,32,36,74,50,56,40,47,41,141,62,68,68,73,77,114,112,113,115,138,133,139,139,145,145,138,136,117,107,138,132,193,128,124,119,116,110,127,105,97,68,135,136,138,146,180,125,132,83,121,121,181,90,153,154,229,104,91,93,123,95,132,108,136,94,97,94,96,36,106,95,107,0,204,0,0,0,0,0,0,0,0,0,0,-8,-8,-29969,-29970,-29996,-29997,-29997,-29998,-29998,-29999,-29999]} 1. e4 {[%emt 0:00:06]} c5 {[%emt 0:00:29]} 2. Nf3 {[%emt 0:00:07]} d6 {[%emt 0:01:02]} 3. Bb5+ {[%emt 0:00:07]} Nd7 {[%emt 0:00:07]} 4. O-O {[%emt 0:00:07]} a6 {[%emt 0:00:04]} 5. Bd3 {[%emt 0:00:45]} Ngf6 {[%emt 0:00:15]} 6. c3 {[%emt 0:00:14]} b5 {[%emt 0:02:05]} 7. Bc2 {[%emt 0:00:22]} Bb7 {[%emt 0:00:53]} 8. Qe2 {[%emt 0:01:54]} e6 {[%emt 0:00:43]} 9. d4 {[%emt 0:00:36]} cxd4 {[%emt 0:23:10]} 10. cxd4 {[%emt 0:00:08]} Be7 {[%emt 0:00:06]} 11. Re1 {[%emt 0:09:09][%cal Od4d5] The position is equal.} Rc8 {[%emt 0:03:29]} 12. Bd3 {[%emt 0:18:59]} Nb6 {[%emt 0:14:33]} 13. b3 {[%emt 0:09:55]} d5 {[%emt 0:01:18]} 14. e5 {[%emt 0:01:15]} Ne4 {[%emt 0:00:07]} 15. Nfd2 {[%emt 0:03:42]} O-O {[%emt 0:12:12]} 16. Bb2 {[%emt 0:06:38]} f5 {[%emt 0:05:02]} 17. exf6 {[%emt 0:05:25]} Rxf6 {[%emt 0:00:05]} 18. f3 {[%emt 0:07:17]} Nd6 {[%emt 0:01:34]} 19. Nf1 {[%emt 0:00:51]} Nd7 {[%emt 0:03:08]} 20. Ne3 {[%emt 0:05:13]} Qb6 {[%emt 0:04:37]} 21. Ng4 {[%emt 0:04:21]} e5 {[%emt 0:00:15]} 22. Nxe5 {[%emt 0:02:21]} (22. Nxf6+ $16 Bxf6 23. Nd2) 22... Nxe5 {[%emt 0:18:45]} 23. Qxe5 {[%emt 0:00:06]} Bf8 {[%emt 0:02:13]} 24. Nd2 {[%emt 0:05:37] Wards off Nc4} Qa5 {[%emt 0:01:31]} 25. Nf1 {[%emt 0:03:52]} Re8 {[%emt 0:01:40]} 26. Qg3 {[%emt 0:00:09]} Rxe1 {[%emt 0:00:55]} 27. Qxe1 {[%emt 0:00:09]} (27. Rxe1 Qxa2 28. Bc1 Qxb3 $17) 27... Qb6 {[%emt 0:00:10]} 28. Ne3 {[%emt 0:05:39]} Re6 {[%emt 0:01:44]} 29. Qf2 {[%emt 0:00:52]} b4 {[%emt 0:00:09]} 30. Re1 {[%emt 0:04:00]} Nb5 {[%emt 0:00:35]} 31. Nc2 {[%emt 0:01:57]} Nc3 {[%emt 0:00:51]} 32. a3 {[%emt 0:00:46]} a5 {[%emt 0:00:34]} (32... Na2 $16) 33. axb4 {[%emt 0:00:08]} (33. Rxe6 $18 Qxe6 34. Qh4) 33... axb4 $16 {[%emt 0:00:05]} 34. Rxe6 {[%emt 0:01:26]} Qxe6 {[%emt 0:00:06]} 35. Qe1 {[%emt 0:00:08] Repels Nd1} Qc6 {[%emt 0:00:46]} 36. Bc1 {[%emt 0:02:56]} Ba6 {[%emt 0:01:09]} 37. Qf1 {[%emt 0:00:27]} Bc8 {[%emt 0:01:02]} (37... Bxd3 $14 38. Qxd3 Qa8) 38. Bd2 {[%emt 0:00:13]} Bd6 {[%emt 0:00:26]} 39. Qe1 {[%emt 0:00:31]} g6 {[%emt 0:00:28]} 40. g3 {[%emt 0:01:08]} (40. h4 $18) 40... Kf7 {[%emt 0:00:47]} 41. Ne3 {[%emt 0:06:32]} (41. Qe3 $142 {aiming for Qh6.} Qb6 42. Qh6) 41... Be6 {[%emt 0:05:31]} 42. Kg2 {[%emt 0:03:33]} Nb5 {[%emt 0:11:23]} (42... Qc8 $16 43. Qa1 Kg7 44. Qa7+ Qc7 45. Qxc7+ Bxc7) 43. Qa1 {[%emt 0:02:28]} (43. Bxb4 $6 Nxd4 44. Bxd6 Qxd6 $16) (43. Nc2 $18) 43... Be7 {[%emt 0:00:49]} (43... Qb6 $142) 44. Nc2 Bf5 {[%emt 0:01:54]} (44... Nc3 $16 {keeps fighting.} 45. Qa5 Qd6 46. Bxc3 bxc3) 45. Qf1 {[%emt 0:05:27]} (45. Nxb4 $2 Bxb4 46. Bxf5 Bxd2 $19) (45. Bxf5 $1 $18 {and the rest is easy. Bd3 would now be deadly.} gxf5 46. Nxb4) 45... Bxd3 {[%emt 0:04:44]} 46. Qxd3 {[%emt 0:00:06]} Qb6 {[%emt 0:00:35]} 47. Bf4 {[%emt 0:07:15]} (47. Nxb4 Qxd4 48. Nc6 (48. Qxd4 Nxd4 49. Nxd5 Nxb3 $14) 48... Qxd3 $14) 47... Na7 {[%emt 0:06:31]} 48. Be5 {[%emt 0:03:02]} Qb5 {[%emt 0:00:25]} 49. Qe3 {[%emt 0:02:34]} Nc6 {[%emt 0:00:23]} 50. Ne1 $1 {[%emt 0:00:33]} Qa6 {[%emt 0:01:14]} 51. Qd2 {[%emt 0:01:46] Against Qa2} (51. Nd3 $1 $16) 51... Qa3 {[%emt 0:01:56]} (51... Qa1 $1 $14) 52. Qc2 {[%emt 0:00:14]} Na5 {[%emt 0:00:09] [#]} 53. Qc7 {[%emt 0:01:47]} ({White has to play} 53. Qc8 $1 $16 {[%cal Rc8h8]}) 53... Qb2+ $2 {[%emt 0:00:18] [#]} (53... Qa2+ $11 {and Black has nothing to worry.} 54. Kh3 Nxb3) 54. Nc2 $2 {[%emt 0:01:25]} (54. Kf1 $1 $18 Qxb3 (54... Nxb3 $2 55. Bd6 $18) 55. Qxa5 Qc4+ 56. Kf2) 54... Nc4 {[%emt 0:00:21] Prevents Bd6} 55. bxc4 {[%emt 0:00:40]} Qxc2+ $11 {[%emt 0:00:06][%mdl 4096] Endgame. KQB-KQB} 56. Kg1 {[%emt 0:00:53]} Qd1+ {[%emt 0:01:43]} 57. Kf2 {[%emt 0:00:26]} Qd2+ {[%emt 0:00:29]} 58. Kf1 {[%emt 0:00:34]} b3 {[%emt 0:00:28]} 59. Bd6 {[%emt 0:00:37]} Qd3+ {[%emt 0:00:20]} 60. Kg2 $2 {[%emt 0:00:30][%mdl 8192]} (60. Kf2 $11 Qd2+ (60... Qxd4+ 61. Kg2 $15) 61. Kf1 Qd1+ 62. Kf2 Qxd4+ 63. Kg2 Qd2+ 64. Kf1) 60... Qe2+ {[%emt 0:00:07] Black mates.} 61. Kh3 {[%emt 0:00:04]} Qf1+ {[%emt 0:01:21]} 62. Kg4 {[%emt 0:00:01]} h5+ {[%emt 0:00:12]} 63. Kf4 {[%emt 0:00:02]} Qc1+ {[%emt 0:00:10]} 64. Ke5 {[%emt 0:00:05]} Qg5# {[%emt 0:00:38] Never resign too early!   Weighted Error Value: White=0.38/Black=0.23 (precise) .  Loses game:     	White=1     	Black=1      Missed win:     	White=1     	---        Mistake:       	White=8     	Black=7      Inaccurate:     	White=2     	Black=6      OK:         	White=14    	Black=12     Best:        	White=2     	Black=2      Strong:       	White=1     	---} 0-1

[Event "Danish Skakligaen 2024-25"]
[Site "Denmark"]
[Date "2024.11.02"]
[Round "1.1"]
[White "Hector, Jonny"]
[Black "Kanov, Nikola"]
[Result "1/2-1/2"]
[ECO "B48"]
[WhiteElo "2431"]
[BlackElo "2400"]
[Annotator "TA"]
[PlyCount "108"]
[EventDate "2024.11.02"]
[EventType "team-tourn"]
[EventCountry "DEN"]
[SourceTitle "playchess.com"]
[Source "ChessBase"]
[SourceQuality "1"]
[TimeControl "40/5400+30:1800+30"]

{[%evp 15,108,36,60,60,66,66,54,41,46,0,10,0,0,-8,66,26,31,37,24,35,25,38,31,7,3,0,0,0,0,0,0,0,0,0,0,0,0,0,0,0,0,0,0,0,0,0,0,-2,0,-19,-6,-4,0,-8,0,0,0,0,0,0,0,0,0,0,0,0,0,-8,-8,-8,-8,-9,0,0,0,0,0,0,0,0,0,0,0,0,0,0,0,0,0,0,0,0,0,0,0]} 1. e4 {[%emt 0:00:08]} c5 {[%emt 0:00:12]} 2. Nf3 {[%emt 0:00:10]} e6 {[%emt 0:00:16]} 3. d4 {[%emt 0:00:12]} cxd4 {[%emt 0:00:09]} 4. Nxd4 {[%emt 0:00:09]} Nc6 {[%emt 0:00:19]} 5. Nc3 {[%emt 0:00:34]} Qc7 {[%emt 0:00:26]} 6. Be3 {[%emt 0:01:58]} a6 {[%emt 0:00:33]} 7. Qf3 {[%emt 0:01:04] B48: Sicilian: Taimanov: 5 Nc3 Qc7 6 Be3 a6 without Be2.} b5 {[%emt 0:00:47]} 8. Qg3 {[%emt 0:05:18]} Bd6 {[%emt 0:00:46]} 9. f4 $1 {[%emt 0:00:49]} (9. Qxg7 $2 Be5 10. Nxe6 fxe6 $19 (10... dxe6 $2 11. Bf4 $19)) 9... Nxd4 {[%emt 0:00:31]} 10. Bxd4 {[%emt 0:00:18]} Ne7 $1 {[%emt 0:00:38]} 11. e5 {[%emt 0:03:01]} (11. Bxg7 $2 Rg8 12. e5 Bb4 $19) (11. Qxg7 {keeps more tension.} Rg8 12. Qxh7 Bxf4 13. Bd3) 11... Bc5 {[%emt 0:01:12]} 12. Qd3 $146 {[%emt 0:03:21]} (12. Qxg7 Rg8 13. Qxh7 Bxd4 $11) (12. Bxc5 $14 Qxc5 13. Bd3 (13. Qxg7 Rg8 $11)) ({Predecessor:} 12. Bxc5 Qxc5 13. O-O-O Nf5 14. Qd3 Qe3+ 15. Qxe3 Nxe3 16. Re1 Nxf1 17. Rhxf1 Bb7 18. Ne4 Bxe4 19. Rxe4 {½-½ Aryan,C (2630)-Yoo,C (2583) Saint Louis Spring-A 2024 (4)}) 12... Bb7 {[%emt 0:12:43]} 13. Bxc5 {[%emt 0:04:58]} Qxc5 {[%emt 0:00:29]} 14. O-O-O {[%emt 0:00:15]} O-O-O {[%emt 0:30:17]} (14... O-O $11) 15. Ne4 {[%emt 0:06:27]} (15. a4 {looks sharper.} bxa4 16. Ne4 Bxe4 17. Qxe4 Kc7 18. Rd3) 15... Bxe4 {[%emt 0:00:22]} 16. Qxe4 {[%emt 0:00:04]} d5 {[%emt 0:03:04]} 17. exd6 {[%emt 0:05:57]} Nd5 {[%emt 0:05:01]} 18. Be2 {[%emt 0:05:29]} Rxd6 {[%emt 0:08:33]} 19. Rd2 {[%emt 0:03:40]} Rhd8 {[%emt 0:02:40]} 20. Rhd1 {[%emt 0:01:29]} Nf6 {[%emt 0:15:52]} 21. Rxd6 {[%emt 0:03:27]} (21. Qe5 {simplifies} Qxe5 22. fxe5 Rxd2 23. Rxd2 Rxd2 24. Kxd2 Nd7 25. a4) 21... Rxd6 {[%emt 0:01:42]} 22. Qa8+ {[%emt 0:03:13]} Kc7 {[%emt 0:01:47]} 23. Rxd6 {[%emt 0:01:52]} Qxd6 {[%emt 0:00:29]} 24. Qa7+ {[%emt 0:00:37]} Kd8 {[%emt 0:01:10]} 25. g3 {[%emt 0:00:59]} (25. Qxf7 Qxf4+ 26. Kd1 (26. Kb1 $2 Qb4 $19) 26... Qd4+ 27. Ke1 Qg1+ 28. Bf1 Qe3+ 29. Be2 Qc1+ 30. Bd1 Qxb2 31. Qxg7 (31. Qxe6 Qb4+ 32. Ke2 Qd4 $11) 31... Qe5+ 32. Kf1 Qf4+ 33. Ke2 Ke8) 25... Nd7 {[%emt 0:00:45]} 26. a4 {[%emt 0:02:54]} bxa4 {[%emt 0:00:51]} 27. Bxa6 {[%emt 0:04:16]} a3 {[%emt 0:04:04]} 28. Bd3 {[%emt 0:13:33]} axb2+ {[%emt 0:00:19]} 29. Kxb2 {[%emt 0:00:12]} g6 {[%emt 0:03:04]} 30. Kc1 {[%emt 0:03:03]} Qb4 {[%emt 0:00:59]} 31. Kd1 {[%emt 0:01:22]} Ke8 {[%emt 0:02:00]} 32. Qa6 {[%emt 0:05:15]} Ke7 {[%emt 0:02:08]} 33. Ke2 {[%emt 0:01:01]} Qd4 {[%emt 0:00:56]} 34. Kf1 {[%emt 0:05:01]} Nc5 {[%emt 0:00:51]} 35. Qc4 {[%emt 0:03:49]} Qe3 {[%emt 0:00:18]} 36. Qb4 {[%emt 0:02:09]} Qf3+ {[%emt 0:01:15]} 37. Kg1 {[%emt 0:00:25]} Qe3+ {[%emt 0:00:06]} 38. Kg2 {[%emt 0:00:19]} h5 {[%emt 0:00:23]} 39. h4 {[%emt 0:02:25]} Kf8 {[%emt 0:01:09]} 40. Qc3 {[%emt 0:03:25]} Kg8 {[%emt 0:00:30]} 41. Qa3 {[%emt 0:35:30]} Qd4 {[%emt 0:12:48]} 42. Qa8+ {[%emt 0:00:00]} Kg7 {[%emt 0:00:08]} 43. Qf3 {[%emt 0:00:00]} e5 {[%emt 0:06:08]} 44. fxe5 {[%emt 0:00:00]} Qxe5 {[%emt 0:00:09]} 45. Bc4 {[%emt 0:00:00]} f5 {[%emt 0:07:32]} 46. Qd5 {[%emt 0:00:00]} Qe4+ {[%emt 0:02:02]} 47. Qxe4 {[%emt 0:00:00]} Nxe4 {[%emt 0:00:15]} 48. Bd5 {[%emt 0:00:00]} Nc3 {[%emt 0:02:18]} 49. Bc6 {[%emt 0:00:00]} f4 {[%emt 0:00:40]} 50. Bf3 {[%emt 0:00:00]} fxg3 {[%emt 0:01:30]} 51. Kxg3 {[%emt 0:00:00]} Kf6 {[%emt 0:00:40]} 52. Kf4 {[%emt 0:00:00]} Nb5 {[%emt 0:00:44]} 53. c4 {[%emt 0:00:00]} Nd4 {[%emt 0:00:22]} 54. Be4 {[%emt 0:00:00]} Ne6+ {[%emt 0:00:16]} 1/2-1/2